bitfinex/quotes_BTCUSD_20250308
["timestamp","ask_amount","ask_price","bid_price","bid_amount"]
[1741392854373,0.05992603,86813.0,86812.0,0.00028562]
[1741392854607,0.29030603,86813.0,86812.0,0.00028562]
[1741392855686,0.04840703,86813.0,86812.0,0.00028562]
[1741392855875,0.04840703,86813.0,86812.0,0.23066762]
[1741392856081,0.04840703,86813.0,86812.0,0.24218662]
[1741392856283,0.03033925,86813.0,86812.0,0.2241188]
[1741392856882,0.02258665,86816.0,86812.0,0.2241188]
[1741392856883,0.02258665,86816.0,86815.0,0.230374]
[1741392857092,0.02258665,86816.0,86815.0,0.359092]
[1741392859308,0.04065317,86816.0,86815.0,0.359092]
[1741392860138,0.04065317,86816.0,86815.0,0.1172]
[1741392862584,0.06227575,86816.0,86815.0,0.1172]
[1741392862786,0.30416575,86816.0,86815.0,0.1172]
[1741392862995,0.07379375,86816.0,86815.0,0.1172]
[1741392863683,0.30416575,86816.0,86815.0,0.1172]
[1741392864059,0.07379375,86816.0,86815.0,0.1172]
[1741392864267,0.06227575,86816.0,86815.0,0.1172]
[1741392864467,0.011518,86817.0,86815.0,0.1172]
[1741392864673,0.01806671,86816.0,86815.0,0.1172]
[1741392865216,0.011518,86816.0,86815.0,0.1172]
[1741392867691,0.0085428,86822.0,86815.0,0.1172]
[1741392867893,0.011517,86827.0,86816.0,0.230372]
[1741392868097,0.230348,86825.0,86817.0,0.00115172]
[1741392868311,0.230348,86825.0,86815.0,0.1172]
[1741392868312,0.011517,86823.0,86815.0,0.1172]
[1741392868521,0.011517,86823.0,86816.0,0.00115173]
[1741392868909,0.011517,86824.0,86816.0,0.23152073]
[1741392869114,0.011517,86824.0,86818.0,0.230365]
[1741392869258,0.011517,86825.0,86818.0,0.230365]
[1741392869463,0.011517,86825.0,86816.0,0.241887]
[1741392869464,0.011517,86824.0,86816.0,0.241887]
[1741392870049,0.011518,86820.0,86815.0,0.1172]
[1741392870332,0.011518,86820.0,86815.0,0.11835175]
[1741392870968,0.011518,86820.0,86815.0,0.34872575]
[1741392871144,0.011517,86823.0,86816.0,0.241887]
[1741392871775,0.02353895,86824.0,86818.0,0.011518]
[1741392872068,0.02353895,86824.0,86822.0,0.0828]
[1741392872806,0.02353895,86824.0,86823.0,0.24302171]
[1741392873017,0.02353895,86824.0,86823.0,0.24187]
[1741392873210,0.0003396,86829.0,86823.0,0.24187]
[1741392873211,0.0003396,86829.0,86828.0,0.241857]
[1741392873410,0.0003396,86829.0,86828.0,0.359017]
[1741392874226,0.0003396,86829.0,86828.0,0.491517]
[1741392874425,0.0003396,86829.0,86828.0,0.7951521]
[1741392875296,6e-07,86829.0,86828.0,1.32940328]
[1741392875487,6e-07,86829.0,86828.0,1.3291521]
[1741392875691,6e-07,86829.0,86828.0,1.32944689]
[1741392876093,6e-07,86829.0,86828.0,1.35444689]
[1741392876464,6e-07,86829.0,86828.0,1.37944689]
[1741392876670,6e-07,86829.0,86828.0,1.3791521]
[1741392880264,6e-07,86829.0,86828.0,1.3541521]
[1741392880948,6e-07,86829.0,86828.0,1.3791521]
[1741392887577,6e-07,86829.0,86828.0,1.3291521]
[1741392888288,6e-07,86829.0,86828.0,1.3541521]
[1741392888495,6e-07,86829.0,86828.0,1.3791521]
[1741392888698,6e-07,86829.0,86828.0,1.3541521]
[1741392889373,6e-07,86829.0,86828.0,1.3291521]
[1741392889599,6e-07,86829.0,86828.0,1.3541521]
[1741392889784,6e-07,86829.0,86828.0,1.3291521]
[1741392893380,6e-07,86829.0,86828.0,1.3541521]
[1741392895764,6e-07,86829.0,86828.0,1.3791521]
[1741392895976,6e-07,86829.0,86828.0,1.5269521]
[1741392899511,8e-07,86840.0,86839.0,0.011515]
[1741392899844,8e-07,86840.0,86839.0,1.19810286]
[1741392900025,8e-07,86840.0,86839.0,1.22195174]
[1741392900225,4e-07,86845.0,86844.0,0.011514]
[1741392900471,4e-07,86845.0,86844.0,0.3964631]
[1741392900656,4e-07,86845.0,86844.0,0.395312]
[1741392901402,4e-07,86845.0,86844.0,0.370312]
[1741392901538,4e-07,86845.0,86844.0,0.395312]
[1741392902655,2e-08,86845.0,86844.0,0.395312]
[1741392903518,0.00033962,86845.0,86844.0,0.395312]
[1741392903708,0.00033962,86845.0,86844.0,0.370312]
[1741392903842,0.00033962,86845.0,86844.0,0.395312]
[1741392904046,0.0003396,86845.0,86844.0,0.395312]
[1741392905068,6e-07,86845.0,86844.0,0.395312]
[1741392905343,0.0003396,86871.0,86861.0,0.241764]
[1741392905558,0.00041516,86862.0,86861.0,0.8906985]
[1741392907062,0.00041516,86862.0,86861.0,0.8101985]
[1741392909168,0.00041516,86862.0,86861.0,0.8906985]
[1741392909407,1.6e-07,86862.0,86861.0,0.9396985]
[1741392909732,1.6e-07,86862.0,86861.0,0.94011348]
[1741392910151,9.6e-07,86868.0,86865.0,0.025]
[1741392910355,5.6e-07,86871.0,86870.0,0.230229]
[1741392910585,5.6e-07,86871.0,86870.0,0.34724]
[1741392910879,5.6e-07,86871.0,86870.0,0.34769064]
[1741392911420,5.6e-07,86871.0,86870.0,0.32269064]
[1741392911850,5.6e-07,86871.0,86870.0,0.34769064]
[1741392912221,5.6e-07,86871.0,86870.0,0.39669064]
[1741392913845,5.6e-07,86871.0,86870.0,0.42412161]
[1741392914197,0.00886576,86911.0,86908.0,0.230128]
[1741392914399,0.00886576,86911.0,86909.0,0.117]
[1741392914613,0.02275051,86913.0,86909.0,0.347124]
[1741392914774,0.02275051,86913.0,86909.0,0.117]
[1741392917937,0.02275051,86913.0,86909.0,0.347125]
[1741392918355,0.011506,86910.0,86909.0,0.117]
[1741392918931,0.230141,86903.0,86902.0,0.14776]
[1741392919093,0.241648,86903.0,86902.0,0.26472]
[1741392919294,0.302648,86903.0,86902.0,0.14776]
[1741392919549,0.072507,86903.0,86902.0,0.14776]
[1741392919778,0.302648,86903.0,86902.0,0.14776]
[1741392919973,0.011509,86884.0,86881.0,0.14772]
[1741392920171,0.011509,86884.0,86882.0,0.11696]
[1741392920483,0.061,86885.0,86882.0,0.11696]
[1741392920819,0.011509,86883.0,86882.0,0.11696]
[1741392921033,0.241706,86882.0,86881.0,0.14772]
[1741392921424,0.061,86895.0,86881.0,0.26468]
[1741392921701,0.24168,86892.0,86881.0,0.26468]
[1741392921899,0.02150837,86894.0,86885.0,0.011509]
[1741392922111,0.02150837,86894.0,86885.0,0.00115082]
[1741392922315,0.011508,86889.0,86881.0,0.26468]
[1741392922638,0.011509,86886.0,86881.0,0.26468]
[1741392922768,0.02150837,86894.0,86886.0,0.011509]
[1741392923202,0.02150837,86894.0,86893.0,0.241676]
[1741392923403,0.03477956,86910.0,86900.0,0.230148]
[1741392923594,0.02327356,86910.0,86900.0,0.230149]
[1741392923788,0.03477956,86910.0,86899.0,0.230152]
[1741392923966,0.011506,86906.0,86894.0,0.241672]
[1741392924169,0.011506,86906.0,86896.0,0.230158]
[1741392924391,0.011505,86915.0,86903.0,0.230141]
[1741392924572,0.011505,86915.0,86904.0,0.347098]
[1741392924741,0.241626,86911.0,86904.0,0.11696]
[1741392924941,0.011506,86908.0,86904.0,0.11696]
[1741392925141,0.011506,86911.0,86904.0,0.11696]
[1741392925386,0.059005,86914.0,86904.0,0.347098]
[1741392925712,0.011505,86917.0,86905.0,0.24279059]
[1741392925906,0.230102,86918.0,86906.0,0.00115054]
[1741392926041,0.011505,86915.0,86906.0,0.00115054]
[1741392926251,0.02262809,86919.0,86909.0,0.011506]
[1741392926782,0.011505,86916.0,86906.0,0.00115054]
[1741392926986,0.011505,86916.0,86905.0,0.23128551]
[1741392927182,0.011505,86916.0,86905.0,0.230135]
[1741392927962,0.011505,86915.0,86905.0,0.230135]
[1741392928573,0.011505,86915.0,86906.0,0.00115051]
[1741392929644,0.011505,86916.0,86906.0,0.00115051]
[1741392929645,0.011505,86916.0,86907.0,0.23013]
[1741392929789,0.0001696,86917.0,86908.0,0.00115051]
[1741392930000,0.241645,86904.0,86903.0,0.0003392]
[1741392930399,0.2420312,86904.0,86903.0,0.0003392]
[1741392934276,0.0003862,86904.0,86903.0,0.0003392]
[1741392934607,0.011511,86868.0,86865.0,0.30363394]
[1741392934741,0.241737,86871.0,86863.0,0.14772]
[1741392934956,0.011511,86869.0,86863.0,0.14772]
[1741392935131,0.011511,86869.0,86864.0,0.11692]
[1741392935498,0.011511,86868.0,86864.0,0.11692]
[1741392935757,0.011511,86871.0,86864.0,0.11692]
[1741392936162,0.011511,86870.0,86864.0,0.11692]
[1741392936434,0.011512,86865.0,86863.0,0.14772]
[1741392936646,0.0394323,86870.0,86864.0,0.11692]
[1741392937001,0.011511,86869.0,86864.0,0.11692]
[1741392937203,0.230244,86864.0,86863.0,0.14772]
[1741392937414,0.241756,86864.0,86863.0,0.14772]
[1741392938132,0.011513,86854.0,86850.0,0.00115121]
[1741392938357,0.011513,86853.0,86851.0,0.11692]
[1741392938566,0.011513,86852.0,86850.0,7.556e-05]
[1741392938786,0.011513,86852.0,86851.0,0.11692]
[1741392938985,0.011513,86857.0,86851.0,0.11692]
[1741392939188,0.011513,86856.0,86851.0,0.11692]
[1741392939405,0.011513,86851.0,86850.0,7.556e-05]
[1741392940335,0.03490181,86887.0,86850.0,7.556e-05]
[1741392940532,0.0279213,86870.0,86861.0,0.230252]
[1741392940688,0.0394323,86870.0,86862.0,0.11807112]
[1741392940906,0.011511,86867.0,86862.0,0.11807112]
[1741392941125,0.011511,86867.0,86862.0,0.11692]
[1741392941321,0.011512,86865.0,86862.0,0.11692]
[1741392941563,0.011512,86864.0,86862.0,0.11692]
[1741392942294,0.011511,86867.0,86862.0,0.11692]
[1741392942735,0.011511,86867.0,86862.0,0.11807113]
[1741392943055,0.00856435,86873.0,86871.0,0.230224]
[1741392943257,0.011508,86890.0,86879.0,0.01151]
[1741392943463,0.011509,86887.0,86880.0,0.11692]
[1741392943658,0.03854976,86887.0,86880.0,0.11692]
[1741392943979,0.00876532,86890.0,86881.0,0.0813]
[1741392944184,0.011508,86891.0,86881.0,0.0813]
[1741392944503,0.011509,86885.0,86880.0,0.11692]
[1741392945710,0.011509,86881.0,86880.0,0.11692]
[1741392946256,0.011509,86881.0,86840.0,0.23563362]
[1741392946257,0.241732,86873.0,86872.0,0.12976127]
[1741392946472,0.241732,86873.0,86863.0,0.11692]
[1741392946473,0.241756,86864.0,86863.0,0.11692]
[1741392946600,0.011512,86860.0,86857.0,0.11692]
[1741392947628,0.011512,86863.0,86857.0,0.11692]
[1741392947832,0.011513,86858.0,86857.0,0.11692]
[1741392948208,0.011513,86855.0,86854.0,0.14776]
[1741392948550,0.241781,86855.0,86854.0,0.14776]
[1741392949893,0.241809,86845.0,86844.0,0.0001698]
[1741392950109,0.241809,86845.0,86844.0,0.00024536]
[1741392955168,0.26523586,86845.0,86844.0,0.00024536]
[1741392964358,0.26523586,86845.0,86844.0,3.6e-07]
[1741392964557,0.26523586,86845.0,86828.0,0.11077727]
[1741392964558,0.241853,86829.0,86828.0,0.11077727]
[1741392964732,0.241853,86829.0,86820.0,0.1478]
[1741392964733,0.241876,86821.0,86820.0,0.26472]
[1741392964957,0.241876,86821.0,86820.0,0.26482217]
[1741392967387,0.04583265,86821.0,86820.0,0.26482217]
[1741392968058,0.230341,86828.0,86820.0,0.26482217]
[1741392968059,0.011516,86829.0,86821.0,0.230359]
[1741392968288,0.011517,86827.0,86821.0,0.230359]
[1741392968494,0.04553737,86829.0,86824.0,0.23035]
[1741392968757,0.011517,86827.0,86820.0,0.26482217]
[1741392968919,0.011517,86821.0,86820.0,0.26482217]
[1741392969158,0.241876,86821.0,86820.0,0.26482217]
[1741392969765,0.011517,86821.0,86820.0,0.26482217]
[1741392969930,0.02148256,86821.0,86820.0,0.26482217]
[1741392970502,0.03299956,86821.0,86820.0,0.26482217]
[1741392970710,0.02148256,86821.0,86820.0,0.26482217]
[1741392972190,0.011515,86840.0,86820.0,0.50670117]
[1741392972394,0.011516,86831.0,86822.0,0.230356]
[1741392972593,0.011517,86828.0,86823.0,0.23150361]
[1741392972819,0.011517,86828.0,86823.0,0.230352]
[1741392973013,0.011517,86828.0,86822.0,0.241873]
[1741392973014,0.011516,86832.0,86828.0,0.230339]
[1741392973342,0.46594262,86840.0,86833.0,0.0799]
[1741392973343,0.011515,86837.0,86833.0,0.0799]
[1741392973653,0.011515,86838.0,86835.0,0.230321]
[1741392973855,0.011515,86838.0,86834.0,0.347244]
[1741392974130,0.011515,86837.0,86834.0,0.11692]
[1741392975075,0.04292713,86840.0,86834.0,0.11692]
[1741392975225,0.03423302,86840.0,86839.0,0.241826]
[1741392975408,0.011514,86845.0,86840.0,0.230307]
[1741392975612,0.011514,86845.0,86841.0,0.230305]
[1741392976031,0.011514,86848.0,86841.0,0.011515]
[1741392976240,0.04549368,86848.0,86844.0,0.230296]
[1741392976449,0.27578268,86848.0,86845.0,0.11692]
[1741392976666,0.241806,86846.0,86845.0,0.11692]
[1741392977376,0.011516,86834.0,86828.0,0.00115155]
[1741392977678,0.011516,86833.0,86829.0,0.11692]
[1741392977831,0.011516,86830.0,86829.0,0.11692]
[1741392978669,0.230345,86826.0,86825.0,0.0799]
[1741392978823,0.230353,86823.0,86822.0,0.30363394]
[1741392979024,0.23563362,86850.0,86822.0,0.42055394]
[1741392979228,0.011516,86830.0,86822.0,0.65090694]
[1741392979472,0.011516,86830.0,86822.0,0.347273]
[1741392979825,0.230353,86823.0,86822.0,0.11692]
[1741392980047,0.011517,86821.0,86818.0,0.0802392]
[1741392980293,0.011517,86821.0,86820.0,0.26499187]
[1741392980736,0.011516,86829.0,86822.0,0.011517]
[1741392980865,0.011517,86828.0,86823.0,0.230352]
[1741392981079,0.011517,86827.0,86821.0,0.230359]
[1741392981284,0.011517,86827.0,86823.0,0.230353]
[1741392981485,0.02160358,86826.0,86823.0,0.230353]
[1741392981812,0.02160358,86826.0,86825.0,0.241865]
[1741392981965,0.02160358,86826.0,86823.0,0.24187]
[1741392982169,0.241876,86821.0,86820.0,0.14807187]
[1741392982369,0.241876,86821.0,86820.0,0.26495187]
[1741392982788,0.241876,86821.0,86820.0,0.14807187]
[1741392984173,0.241876,86821.0,86820.0,0.00027187]
[1741392984174,0.441876,86821.0,86820.0,0.00027187]
[1741392985267,0.46519318,86821.0,86820.0,0.00027187]
[1741392986370,0.011518,86819.0,86818.0,0.00022981]
[1741392986554,0.241882,86819.0,86818.0,0.00022981]
[1741392987029,0.246504,86819.0,86818.0,0.00022981]
[1741392988111,0.004622,86819.0,86818.0,0.00022981]
[1741392988341,5.329e-05,86821.0,86820.0,0.230361]
[1741392988547,5.329e-05,86821.0,86820.0,0.358759]
[1741392989140,5.329e-05,86821.0,86820.0,0.11688]
[1741392989359,5.329e-05,86821.0,86820.0,0.241879]
[1741392989520,5.329e-05,86821.0,86820.0,0.358759]
[1741392989724,5.329e-05,86821.0,86820.0,0.241879]
[1741392990056,5.329e-05,86821.0,86820.0,0.11688]
[1741392990440,0.02162122,86821.0,86820.0,0.43203194]
[1741392990642,0.02162122,86821.0,86820.0,0.78439294]
[1741392990848,0.10328878,86831.0,86830.0,0.317651]
[1741392991042,0.10328878,86831.0,86830.0,0.22364]
[1741392991674,0.10328878,86831.0,86830.0,0.235156]
[1741392991855,0.10328878,86831.0,86830.0,0.22364]
[1741392992262,0.10328878,86831.0,86830.0,0.235156]
[1741392994146,0.10328878,86831.0,86830.0,0.465491]
[1741392994495,0.10328878,86831.0,86830.0,0.76912494]
[1741392995079,0.011514,86844.0,86833.0,0.24184]
[1741392995280,0.011515,86836.0,86834.0,0.00115147]
[1741392995479,0.011516,86833.0,86830.0,0.52727394]
[1741392995787,0.011516,86835.0,86831.0,0.11688]
[1741392995986,0.011516,86831.0,86830.0,0.45147394]
[1741392996184,0.011516,86831.0,86830.0,0.56835394]
[1741392996185,0.241848,86831.0,86830.0,0.56835394]
[1741392996860,0.241848,86831.0,86821.0,0.0759698]
[1741392996861,0.011516,86831.0,86822.0,0.11688]
[1741392997064,0.24187,86823.0,86822.0,0.11688]
[1741392998650,0.241873,86822.0,86821.0,0.0001698]
[1741393001143,0.241882,86819.0,86816.0,0.0001699]
[1741393003332,0.26343134,86819.0,86816.0,0.0001699]
[1741393008934,0.241887,86817.0,86816.0,0.0001699]
[1741393010459,0.26343634,86817.0,86816.0,0.0001699]
[1741393012732,0.02154934,86817.0,86816.0,0.0001699]
[1741393012936,0.26343634,86817.0,86816.0,0.0001699]
[1741393020000,0.26343634,86817.0,86812.0,0.0001699]
[1741393020001,0.241899,86813.0,86812.0,0.0001699]
[1741393020205,0.241899,86813.0,86812.0,0.00022319]
[1741393021783,0.26344834,86813.0,86812.0,0.00022319]
[1741393025180,0.02154934,86813.0,86812.0,0.00022319]
[1741393025379,0.02154934,86813.0,86812.0,0.16576319]
[1741393025916,0.02154934,86813.0,86812.0,0.39614519]
[1741393026143,0.0003396,86821.0,86815.0,0.011518]
[1741393026344,0.0003396,86821.0,86820.0,0.241879]
[1741393026516,0.0003396,86821.0,86820.0,0.0779]
[1741393027924,0.0003396,86821.0,86820.0,0.456141]
[1741393028112,0.0003396,86821.0,86820.0,0.467659]
[1741393028471,0.13044873,86831.0,86820.0,0.22578]
[1741393028696,0.10351547,86828.0,86820.0,0.22693163]
[1741393029150,0.011517,86827.0,86820.0,0.22693163]
[1741393029358,0.10351547,86828.0,86822.0,0.230356]
[1741393029537,0.10351547,86828.0,86823.0,0.347193]
[1741393029742,0.10351547,86828.0,86823.0,0.11684]
[1741393030086,0.11503247,86828.0,86823.0,0.11684]
[1741393030241,0.011517,86824.0,86823.0,0.11684]
[1741393030663,0.241868,86824.0,86823.0,0.11684]
[1741393030872,0.011517,86823.0,86820.0,0.22578]
[1741393031095,0.011517,86823.0,86821.0,0.11684]
[1741393031296,0.011517,86822.0,86821.0,0.11684]
[1741393031700,0.241876,86821.0,86820.0,0.34262]
[1741393032432,0.011517,86821.0,86820.0,0.34262]
[1741393032584,0.241876,86821.0,86820.0,0.34262]
[1741393032786,0.241876,86821.0,86820.0,0.14788]
[1741393033186,0.241899,86813.0,86812.0,0.00022319]
[1741393038014,0.2654327,86813.0,86812.0,0.00022319]
[1741393039040,0.011519,86810.0,86809.0,0.0001698]
[1741393039259,0.241907,86810.0,86809.0,0.0001698]
[1741393042691,0.011519,86810.0,86809.0,0.0001698]
[1741393042956,0.241907,86810.0,86809.0,0.0001698]
[1741393043313,0.011519,86810.0,86809.0,0.0001698]
[1741393043546,0.241907,86810.0,86809.0,0.0001698]
[1741393048895,0.26349374,86810.0,86809.0,0.0001698]
[1741393050646,0.441924,86804.0,86803.0,0.0001699]
[1741393051215,0.45999667,86804.0,86803.0,0.0001699]
[1741393051416,0.241946,86796.0,86795.0,0.0053392]
[1741393051739,0.241976,86785.0,86782.0,0.0809]
[1741393052254,0.241976,86785.0,86779.0,0.11684]
[1741393052454,0.011522,86785.0,86776.0,0.16364]
[1741393052655,0.011521,86791.0,86777.0,0.0118622]
[1741393052872,0.011521,86791.0,86785.0,0.0809]
[1741393053032,0.011522,86790.0,86785.0,0.08128593]
[1741393053862,0.011522,86786.0,86785.0,0.08128593]
[1741393054063,0.241973,86786.0,86785.0,0.08128593]
[1741393054266,0.011521,86797.0,86786.0,0.230449]
[1741393054512,0.00885838,86798.0,86793.0,0.011521]
[1741393054710,0.00885838,86798.0,86793.0,0.24310503]
[1741393054711,0.02903085,86798.0,86793.0,0.24310503]
[1741393054916,0.01152,86805.0,86797.0,0.230422]
[1741393055120,0.01152,86802.0,86798.0,0.11684]
[1741393055375,0.01152,86803.0,86798.0,0.11684]
[1741393055932,0.03308462,86804.0,86798.0,0.11684]
[1741393056114,0.05189297,86804.0,86799.0,0.241936]
[1741393056316,0.05189297,86804.0,86799.0,0.230416]
[1741393056516,0.05189297,86804.0,86800.0,0.230413]
[1741393056741,0.02156462,86803.0,86800.0,0.230413]
[1741393057101,0.02156462,86803.0,86802.0,0.0809]
[1741393057218,0.25197062,86803.0,86802.0,0.0809]
[1741393057412,0.03308462,86803.0,86802.0,0.0809]
[1741393057869,0.02156462,86803.0,86802.0,0.0809]
[1741393058882,0.02156462,86803.0,86802.0,0.09242]
[1741393059085,0.02156462,86803.0,86802.0,0.322829]
[1741393059287,0.02156462,86803.0,86802.0,0.369229]
[1741393059491,0.02156462,86803.0,86802.0,0.67286294]
[1741393060636,0.10359936,86813.0,86802.0,0.67286294]
[1741393060637,0.10359936,86813.0,86812.0,0.364801]
[1741393060839,0.10359936,86813.0,86812.0,0.481641]
[1741393061447,0.10359936,86813.0,86812.0,0.78527494]
[1741393061448,0.05359936,86813.0,86812.0,0.78527494]
[1741393061679,0.0003396,86817.0,86813.0,0.025]
[1741393062060,0.0003396,86817.0,86816.0,0.36479]
[1741393062262,0.03029873,86844.0,86830.0,0.241851]
[1741393062376,0.03683849,86849.0,86830.0,0.629471]
[1741393063020,0.04835249,86849.0,86830.0,0.629471]
[1741393063219,0.03008248,86844.0,86830.0,0.629471]
[1741393064024,0.230261,86858.0,86830.0,0.629471]
[1741393064200,0.02900973,86847.0,86830.0,0.629471]
[1741393064909,0.02900973,86847.0,86830.0,0.93310494]
[1741393065670,0.04052373,86847.0,86830.0,0.93310494]
[1741393065867,0.011515,86843.0,86830.0,0.93306494]
[1741393066099,0.011515,86842.0,86830.0,0.93306494]
[1741393066276,0.011515,86841.0,86830.0,0.93306494]
[1741393066492,0.011515,86843.0,86830.0,0.93306494]
[1741393067129,0.011515,86841.0,86830.0,0.93306494]
[1741393067436,0.230255,86861.0,86830.0,0.93306494]
[1741393067625,0.011513,86857.0,86830.0,0.93306494]
[1741393067835,0.011513,86855.0,86830.0,0.93306494]
[1741393068526,0.011513,86854.0,86830.0,0.93306494]
[1741393068742,0.02887648,86847.0,86830.0,0.93306494]
[1741393069073,0.04039048,86847.0,86830.0,0.93306494]
[1741393069813,0.230299,86844.0,86830.0,0.92154894]
[1741393070103,0.011516,86835.0,86830.0,0.64477394]
[1741393070504,0.011516,86832.0,86830.0,0.64477394]
[1741393070755,0.2421876,86831.0,86830.0,0.56827394]
[1741393071526,0.0003396,86831.0,86830.0,0.56827394]
[1741393072098,0.0003396,86831.0,86830.0,0.81012494]
[1741393072667,0.0003396,86831.0,86830.0,0.88732494]
[1741393073256,0.0003396,86831.0,86830.0,0.93342494]
[1741393074070,0.0003396,86831.0,86830.0,0.14788]
[1741393074071,0.2421876,86831.0,86830.0,0.14788]
[1741393074271,0.2712786,86831.0,86830.0,0.14788]
[1741393074559,0.0409466,86831.0,86830.0,0.14788]
[1741393074967,0.0294306,86831.0,86830.0,0.14788]
[1741393075185,0.0294306,86831.0,86830.0,0.14903153]
[1741393075345,0.0294306,86831.0,86830.0,0.26464]
[1741393075886,0.0003396,86831.0,86830.0,0.26464]
[1741393076316,0.0003396,86831.0,86830.0,0.14788]
[1741393076518,0.0003396,86831.0,86830.0,0.26579155]
[1741393076692,0.0003396,86831.0,86830.0,0.26464]
[1741393077583,0.0003396,86831.0,86830.0,0.14788]
[1741393077758,0.0003396,86831.0,86830.0,0.26579153]
[1741393077962,0.0003396,86831.0,86830.0,0.26464]
[1741393079815,0.0003396,86831.0,86830.0,0.14788]
[1741393079977,0.0003396,86831.0,86830.0,0.26579154]
[1741393080162,0.0003396,86831.0,86830.0,0.26464]
[1741393080573,0.0003396,86831.0,86830.0,0.466931]
[1741393080806,0.0003396,86831.0,86830.0,0.583691]
[1741393081728,0.0003396,86831.0,86830.0,0.22508]
[1741393081909,0.2421876,86831.0,86830.0,0.14788]
[1741393082112,0.2421876,86831.0,86830.0,0.26464]
[1741393082309,0.0003396,86831.0,86830.0,0.26464]
[1741393082922,0.0003396,86831.0,86830.0,0.494975]
[1741393083127,0.0003396,86831.0,86830.0,0.506491]
[1741393083497,0.0003396,86831.0,86830.0,0.69336494]
[1741393083877,0.0003396,86831.0,86830.0,0.81012494]
[1741393084355,0.0003396,86831.0,86830.0,0.69336494]
[1741393084572,0.0003396,86831.0,86830.0,0.81012494]
[1741393084759,0.0003396,86831.0,86830.0,0.69336494]
[1741393084961,0.0003396,86831.0,86830.0,0.81012494]
[1741393085780,0.0003396,86831.0,86830.0,0.94062494]
[1741393085977,2e-07,86837.0,86836.0,0.322534]
[1741393086178,2e-07,86837.0,86836.0,1.23528583]
[1741393086413,2e-07,86837.0,86836.0,1.26162975]
[1741393086828,2e-07,86837.0,86836.0,1.26131186]
[1741393087407,2e-07,86837.0,86836.0,1.26105973]
[1741393087608,0.01083083,86873.0,86871.0,0.241737]
[1741393087837,0.00028557,86872.0,86871.0,0.506297]
[1741393089594,0.00028557,86872.0,86871.0,0.80993094]
[1741393089770,0.00028557,86872.0,86871.0,0.506297]
[1741393090384,0.00028557,86872.0,86871.0,0.80993094]
[1741393091740,0.00028557,86872.0,86871.0,1.34393094]
[1741393092319,0.00028557,86872.0,86871.0,1.41913094]
[1741393092556,5.7e-07,86872.0,86871.0,1.41913094]
[1741393096109,5.7e-07,86872.0,86871.0,1.30237094]
[1741393096312,5.7e-07,86872.0,86871.0,1.41909094]
[1741393097521,0.00017037,86872.0,86871.0,1.41909094]
[1741393098323,0.00017037,86872.0,86871.0,0.88509094]
[1741393099838,0.00017037,86872.0,86871.0,0.69317094]
[1741393100039,0.01168137,86872.0,86871.0,0.56811394]
[1741393100419,0.24190437,86872.0,86871.0,0.45143394]
[1741393100670,0.00017037,86872.0,86871.0,0.79833994]
[1741393100870,0.00017037,86872.0,86871.0,0.80985094]
[1741393101404,0.00017037,86872.0,86871.0,0.89015094]
[1741393102759,0.00017037,86872.0,86871.0,0.93685094]
[1741393103342,3.7e-07,86872.0,86871.0,1.47085094]
[1741393103478,0.0003396,86908.0,86882.0,0.322006]
[1741393103818,0.0003396,86908.0,86882.0,0.438686]
[1741393105819,0.0003396,86908.0,86896.0,0.319368]
[1741393106032,0.0003396,86908.0,86896.0,0.88744157]
[1741393109860,0.0003396,86908.0,86896.0,0.80974157]
[1741393110472,0.0003396,86908.0,86896.0,0.80970157]
[1741393110875,0.2420038,86897.0,86896.0,0.56803357]
[1741393111073,0.0118468,86897.0,86896.0,0.56803357]
[1741393112892,0.0003398,86897.0,86896.0,0.56803357]
[1741393114306,0.0003398,86897.0,86896.0,0.80970157]
[1741393114716,0.0003398,86897.0,86896.0,0.56803357]
[1741393114717,0.2420038,86897.0,86896.0,0.56803357]
[1741393115702,0.2420038,86897.0,86896.0,0.2644]
[1741393115900,0.2420038,86897.0,86896.0,0.14776]
[1741393116127,0.0118468,86897.0,86885.0,0.00115082]
[1741393116448,0.241712,86880.0,86879.0,0.14772]
[1741393116590,0.01151,86880.0,86879.0,0.14772]
[1741393117102,0.241712,86880.0,86879.0,0.14772]
[1741393117618,0.01151,86880.0,86879.0,0.14772]
[1741393118010,0.241712,86880.0,86879.0,0.14772]
[1741393118405,0.26824377,86880.0,86879.0,0.14772]
[1741393120468,0.02653177,86880.0,86879.0,0.14772]
[1741393120664,0.241679,86892.0,86880.0,0.01151]
[1741393120890,0.011509,86886.0,86879.0,0.1480594]
[1741393121962,0.0375195,86886.0,86879.0,0.1480594]
[1741393122554,0.011508,86895.0,86883.0,0.230193]
[1741393122668,0.01116619,86908.0,86879.0,0.14921034]
[1741393122669,0.0003398,86897.0,86890.0,0.011508]
[1741393122869,0.0003398,86897.0,86896.0,0.241668]
[1741393123593,0.0003398,86897.0,86896.0,0.319568]
[1741393126400,0.0003398,86897.0,86896.0,0.30806]
[1741393126787,0.0003398,86897.0,86896.0,0.319568]
[1741393128213,0.0003398,86897.0,86891.0,0.358319]
[1741393128214,0.0003398,86897.0,86895.0,0.230161]
[1741393128411,0.0003398,86897.0,86896.0,0.00115068]
[1741393128611,0.0003398,86897.0,86896.0,0.11664]
[1741393129051,0.00320986,86903.0,86896.0,0.11664]
[1741393129370,0.000386,86900.0,86896.0,0.11664]
[1741393129522,0.011507,86899.0,86896.0,0.11664]
[1741393130117,0.011507,86898.0,86896.0,0.11664]
[1741393130315,0.000386,86900.0,86896.0,0.11664]
[1741393130768,0.230162,86895.0,86893.0,0.00115072]
[1741393130976,0.011508,86892.0,86883.0,0.23134279]
[1741393131286,0.011508,86892.0,86884.0,0.346831]
[1741393131474,0.011508,86892.0,86879.0,0.3782634]
[1741393131475,0.011509,86883.0,86879.0,0.1480594]
[1741393131676,0.011509,86883.0,86880.0,0.11779087]
[1741393131875,0.011509,86883.0,86880.0,0.11664]
[1741393132079,0.011509,86886.0,86880.0,0.11664]
[1741393132286,0.011509,86886.0,86881.0,0.00115087]
[1741393132486,0.011509,86886.0,86883.0,0.0003394]
[1741393133065,0.011508,86889.0,86883.0,0.0003394]
[1741393133469,0.011509,86888.0,86883.0,0.0003394]
[1741393133818,0.011508,86889.0,86883.0,0.2305334]
[1741393133993,0.23017,86892.0,86883.0,0.2305334]